{"text_format":"1","workbook":"xlsx","n_sheets":2,"sheets":["Лист1","Лист2"],"not_rendered":{"charts":0,"images":0,"macros":1,"external_links":0,"defined_names":0,"comments":0,"pivot_tables":0},"unopened":[],"bounds":{"document_bytes":16777216,"sheet_cells":100000,"rows_first":2000,"rows_last":500,"rows_between":2000,"halvings":0,"cell_chars":16384,"cell_head_chars":4096},"cells_cut":0,"cells_raw":0,"read":"whole","date_system":"1900"}

{"sheet":"Лист1","index":0,"n_rows":63,"n_cols":21,"rows_kept":63,"cut":false,"hidden":false,"merged":[]}
[null,null,null,null,null,null,"Аспирантура ИЯФ СО РАН"]
[null,null,null,null,null,null,"Индивидуальный учебный план"]
[null,null,null,null,null,null,"аспиранта Коробова Александра Алексеевича",null,null,null,null,null,null,null,null,null,null,null,null,"Введите Вашу фамилию"]
[]
[null,null,"Направление: 03.06.01 Физика и астрономия",null,null,null,null,null,null,null,null,null,null,null,"Форма обучения: очная"]
["Профиль обучения: ",null,null,null,null,null,null,null,null,null,null,null,null,null,null,null,null,null,null,"Введите профиль обучения"]
[]
[null,null,null,null,null,null,"В зачетных единицах",null,null,null,null,null,null,null,null,"В часах"]
[null,null,null,null,null,null,"Семестры",null,null,null,null,null,null,null,null,"Виды работы"]
[null,"Год обучения","Всего","I","II","III","IV","V","VI","VII","VIII","Всего","Контактная работа","Лекции","Практики, семинары","Консультации","Самостоятельная работа","Зачеты","Экзамены"]
[null,null,null,null,null,null,"Блок 1 Дисциплины",null,null,null,null,null,null,null,null,null,null,null,null,"Преподаватель","Комментарии"]
[null,null,null,null,null,null,"Базовые дисциплины"]
["Избранные вопросы истории физики",1,{"$f":"SUM(D13:K13)","v":1},{"$f":"IF(B13=1,$L13/36,\" \")","v":1},null,{"$f":"IF(B13=2,$L13/36,\" \")","v":" "},null,{"$f":"IF(B13=3,$L13/36,\" \")","v":" "},null,null,null,{"$f":"SUM(N13:S13)","v":36},{"$f":"SUM(N13:P13)","v":34},32,null,2,null,2,null,"Грозин","Обязательный курс"]
["История и философия науки. Кандидатский экзамен",null,{"$f":"SUM(D14:K14)","v":2},null,{"$f":"IF(B13=1,$L14/36,\" \")","v":2},null,{"$f":"IF(B13=2,$L14/36,\" \")","v":" "},null,{"$f":"IF(B13=3,$L14/36,\" \")","v":" "},null,null,{"$f":"SUM(N14:S14)","v":72},{"$f":"SUM(N14:P14)","v":36},36,null,null,null,null,36,"Дмитриев","Обязательный курс"]
["Иностранный язык. Грамматика",null,{"$f":"SUM(D15:K15)","v":3},{"$f":"IF(B16=1,$L15/36,\" \")","v":3},null,{"$f":"IF(B16=2,$L15/36,\" \")","v":" "},null,{"$f":"IF(B16=3,$L15/36,\" \")","v":" "},null,null,null,{"$f":"SUM(N15:S15)","v":108},106,36,68,2,null,2,null,"Коломакина","Обязательный курс"]
["Иностранный язык. Научно-технический перевод",1,{"$f":"SUM(D16:K16)","v":2},null,{"$f":"IF(B16=1,$L16/36,\" \")","v":2},null,{"$f":"IF(B16=2,$L16/36,\" \")","v":" "},null,{"$f":"IF(B16=3,$L16/36,\" \")","v":" "},null,null,{"$f":"SUM(N16:S16)","v":72},32,16,null,16,38,2,null,"Коломакина","Обязательный курс"]
["Иностранный язык. Кандидатский экзамен",null,{"$f":"SUM(D17:K17)","v":1},null,{"$f":"IF(B16=1,$L17/36,\" \")","v":1},{"$f":"IF(B18=2019,$L17/36,\" \")","v":" "},{"$f":"IF(B16=2,$L17/36,\" \")","v":" "},null,{"$f":"IF(B16=3,$L17/36,\" \")","v":" "},null,null,{"$f":"SUM(N17:S17)","v":36},0,null,null,null,null,null,36,"Коломакина","Обязательный курс"]
["Итого Базовые дисциплины",null,{"$f":"SUM(C13:C17)","v":9},null,null,null,null,null,null,null,null,{"$f":"SUM(L14:L17)","v":288},{"$f":"SUM(M14:M17)","v":174}]
[null,null,null,null,null,null,"Вариативные дисциплины"]
["Психология и технология преподавания",1,{"$f":"SUM(D20:K20)","v":3},null,{"$f":"IF(B20=1,$L20/36,\" \")","v":3},null,{"$f":"IF(B20=2,$L20/36,\" \")","v":" "},null,{"$f":"IF(B20=3,$L20/36,\" \")","v":" "},null,null,{"$f":"SUM(N20:S20)","v":108},{"$f":"SUM(N20:P20)","v":72},36,36,null,{"$f":"3*36-SUM(N20:P20)-SUM(R20:S20)","v":32},4,null,"Петрова","Обязательный курс"]
[{"$f":"Лист2!$C$22","v":"!!!!!!Введите профиль обучения (строка 6)"},3,{"$f":"SUM(D21:K21)","v":3},null,{"$f":"IF(B21=1,$L21/36,\" \")","v":" "},null,{"$f":"IF(B21=2,$L21/36,\" \")","v":" "},null,{"$f":"IF(B21=3,$L21/36,\" \")","v":3},null,null,{"$f":"SUM(N21:S21)","v":108},{"$f":"SUM(N21:P21)","v":44},36,0,8,{"$f":"3*36-SUM(N21:P21)-SUM(R21:S21)","v":28},null,36,null,"Обязательный курс (в соответствии с профилем подготовки)"]
["Как писать диссертацию","Искл",{"$f":"SUM(D22:K22)","v":0},null,null,null,null,null,{"$f":"IF(B22=3,$L22/36,\" \")","v":" "},null,null,{"$f":"SUM(N22:S22)","v":108},36,36,null,null,68,4,null,"Дружинин","Только для аспирантов, специализирующихся в ФЭЧ"]
["Избранные главы современной физики","Искл",0,{"$f":"IF(B23=1,$L23/36/2,\" \")","v":" "},{"$f":"IF(B23=1,$L23/36/2,\" \")","v":" "},{"$f":"IF(B23=2,$L23/36/2,\" \")","v":" "},{"$f":"IF(B23=2,$L23/36/2,\" \")","v":" "},{"$f":"IF(B23=3,$L23/36/2,\" \")","v":" "},{"$f":"IF(B23=3,$L23/36/2,\" \")","v":" "},null,null,{"$f":"SUM(N23:S23)","v":216},144,72,72,null,{"$f":"6*36-SUM(N23:P23)-SUM(R23:S23)","v":64},8,null,"Мильштейн","Рекомендован для ФЭЧ"]
["Стандартная модель и ее расширения","Искл",0,{"$f":"IF(B24=1,$L24/36/2,\" \")","v":" "},{"$f":"IF(B24=1,$L24/36/2,\" \")","v":" "},{"$f":"IF(B24=2,$L24/36/2,\" \")","v":" "},{"$f":"IF(B24=2,$L24/36/2,\" \")","v":" "},{"$f":"IF(B24=3,$L24/36/2,\" \")","v":" "},{"$f":"IF(B24=3,$L24/36/2,\" \")","v":" "},null,null,{"$f":"SUM(N24:S24)","v":216},144,72,72,null,{"$f":"6*36-SUM(N24:P24)-SUM(R24:S24)","v":64},8,null,"Фадин","Рекомендован для ФЭЧ"]
["Методы анализа физических измерений","Искл",0,null,{"$f":"IF(B25=1,$L25/36,\" \")","v":" "},null,{"$f":"IF(B25=2,$L25/36,\" \")","v":" "},null,{"$f":"IF(B25=3,$L25/36,\" \")","v":" "},null,null,{"$f":"SUM(N25:S25)","v":108},40,36,null,4,64,4,null,"Логашенко","Рекомендован для специальности 01.04.01"]
["Теория и методы физических измерений",3,3,null," ",null," ",null,3,null,null,108,40,36,null,4,64,4,null,"Соколов","Рекомендован для специальности 01.04.01"]
["Современная физика плазмы",2,6,null," ",{"$f":"IF(B27=2,$L27/36/6,\" \")","v":1},{"$f":"IF(B27=2,$L27/36/3,\" \")","v":2},{"$f":"IF(B27=2,$L27/36/6,\" \")","v":1},{"$f":"IF(B27=2,$L27/36/3,\" \")","v":2},null,null,216,144,144,null,null,{"$f":"6*36-SUM(N27:P27)-SUM(R27:S27)","v":70},2,null,"Семинары плазменных лабораторий","Рекомендован для специальности 01.04.08"]
["Физика плазмы для аспирантов",2,3,null," ",null,{"$f":"IF(B28=2,$L28/36,\" \")","v":3},null," ",null,null,108,36,36,null,null,70,2,null,"Приглашенные лекторы","Рекомендован для специальности 01.04.08"]
["Диагностика плазмы и плазменный эксперимент",3,0,null,null,{"$f":"IF(B29=2,$L29/36,\" \")","v":" "},null,null,null,null,null,{"$f":"SUM(N29:S29)","v":108},{"$f":"SUM(N29:P29)","v":37},37,null,null,{"$f":"3*36-SUM(N29:P29)-SUM(R29:S29)","v":68},3,null,"Приглашенные лекторы","Рекомендован для специальности 01.04.08"]
["Методы ускорения заряженных частиц",1,3,null,3,null,{"$f":"IF(B30=2,$L30/36,\" \")","v":" "},null," ",null,null,108,40,36,null,4,64,4,null,"Востриков","Рекомендован для специальности 01.04.20"]
["Ускорители и их применения",1,3,{"$f":"IF(B31=1,$L31/36,\" \")","v":3},null,{"$f":"IF(B31=2,$L30/36,\" \")","v":" "},null,{"$f":"IF(B31=3,$L31/36,\" \")","v":" "},null,null,null,108,40,36,null,4,64,4,null,"Востриков","Рекомендован для специальности 01.04.08"]
["Современные технологии разработки электроники","Искл",0,{"$f":"IF(B32=1,$L32/36,\" \")","v":" "},null,{"$f":"IF(B32=2,$L32/36,\" \")","v":" "},null,{"$f":"IF(B32=3,$L32/36,\" \")","v":" "},null,null,null,108,76,36,36,4,28,4,null,"Жуланов"]
["Язык PYTHON для научных вычислений","Искл",0,{"$f":"IF(B33=1,$L33/36,\" \")","v":" "},null,{"$f":"IF(B33=2,$L33/36,\" \")","v":" "},null,{"$f":"IF(B33=3,$L33/36,\" \")","v":" "},null,null,null,108,40,null,36,4,64,4,null,"Фатькин"]
["Компьютерные технологии в физическом эксперименте","Искл",0,null," ",null," ",null," ",null,null,108,76,36,36,4,28,4,null,"Логашенко"]
["Современная физика высоких энергий",2,3,null," ",null,3,null," ",null,null,108,40,36,null,4,64,4,null,"Середняков"]
["Системы управления большими физическими установками","Искл",0,null," ",null," ",null," ",null,null,108,40,36,null,4,64,4,null,"Фатькин"]
["Введение в физику элементарных частиц","Искл",0,null," ",{"$f":"IF(B37=2,$L37/36/2,\" \")","v":" "},{"$f":"IF(B37=2,$L37/36/2,\" \")","v":" "},null," ",null,null,216,152,72,72,8,{"$f":"6*36-SUM(N37:P37)-SUM(R37:S37)","v":60},4,null,"Ли"]
[]
["Итого Вариативные дисциплины",null,{"$f":"SUBTOTAL(109,C20:C37)","v":27},"Должно быть 21 з.е.",null,null,null,null,null,null,null,{"$f":"SUBTOTAL(109,L20:L37)","v":2376},{"$f":"SUBTOTAL(109,M20:M37)","v":1241}]
[null,null,null,null,null,null,"Блок 2 Практики"]
["Педагогическая практика",null,{"$f":"SUM(D41:I41)","v":3},null,null,3,null,null,null,null,null,null,null,null,null,null,null,null,null,"Объем - 3 з.е. в любом из семестров 1-3 года обучения"]
["Практика в ведущих научных центрах",null,{"$f":"SUM(D42:K42)","v":0}]
["Итого Практики",null,{"$f":"SUBTOTAL(109,C41:C42)","v":3}]
[null,null,null,null,null,null,"Блок 3 Научные исследования"]
["Научно-исследовательская деятельность",null,{"$f":"SUM(D44:K45)","v":171},{"$f":"30-SUBTOTAL(109,D13:D17)-SUBTOTAL(109,D20:D37)-SUBTOTAL(109,D41:D42)","v":23},19,26,22,29,22,30]
["Подготовка научно-квалификационной работы (диссертации) на соискание ученой степени кандидата наук",null,{"$f":"SUM(D46:K46)","v":21},null,null,null,null,null,null,null,21]
["Итого Научные исследования",null,{"$f":"SUM(C45:C46)","v":192}]
[null,null,null,null,null,null,"Блок 4 Государственная итоговая аттестация"]
["Государственный экзамен",null,{"$f":"SUM(D49:K49)","v":3},null,null,null,null,null,null,null,3]
["Представление научного доклада об основных результатах\nподготовленной научно-квалификационной работы",null,{"$f":"SUM(D50:K50)","v":6},null,null,null,null,null,null,null,6]
["Итого Государственная итоговая аттестация",null,{"$f":"SUM(C49:C50)","v":9}]
["Итого Программа обучения в аспирантуре",null,{"$f":"SUM(C18+C39+C43+C47+C51)","v":240},{"$f":"Лист2!D33","v":30},{"$f":"Лист2!E33","v":30},{"$f":"Лист2!F33","v":30},{"$f":"Лист2!G33","v":30},{"$f":"Лист2!H33","v":30},{"$f":"Лист2!I33","v":30},{"$f":"Лист2!J33","v":30},{"$f":"Лист2!K33","v":30}]
[]
[null,null,null,null,null,null,"Факультативные дисциплины",null,null,null,null,null,null,null,null,null,null,null,null,"Факультативные дисциплины не включаются учебную нагрузку, но могут быть по просьбе аспиранта вписаны в диплом."]
["Иностранный язык. Подготовительный курс","Искл",{"$f":"SUM(D55:K55)","v":0},{"$f":"IF(B55=1,$L55/36/2,\" \")","v":" "},{"$f":"IF(B55=1,$L55/36/2,\" \")","v":" "},null,null,null,null,null,null,{"$f":"SUM(N55:S55)","v":216},null,null,144,null,{"$f":"6*36-SUM(N55:P55)-SUM(R55:S55)","v":64},8,null,"Подготовительный курс для аспирантов со слабым знанием английского"]
[null,null,null,null,null,null,null,null,null,null,null,null,null,null,null,null,null,null,null,"При желании в эту строчку можно скопировать вариативные дисциплины, не включенные в основной учебный план"]
["Итого Факультативные дисциплины",null,{"$f":"SUM(C55:C56)","v":0},{"$f":"SUM(D55:D56)","v":0},0,0,0,0,0,0,0]
[]
["Дата____________"]
["Аспирант__________________________________",null,null,null,"Научный руководитель_______________________________"]
[]
[]
["Начальник отдела аспирантуры_____________________"]

{"sheet":"Лист2","index":1,"n_rows":33,"n_cols":11,"rows_kept":33,"cut":false,"hidden":false,"merged":[]}
["Профиль обучения: ",null,null,null,null,null,null,null,"!!!!!!Введите профиль обучения (строка 6)"]
["Профиль обучения: 01.04.01 Приборы и методы экспериментальной физики",null,null,null,null,null,null,null,"Приборы и методы экспериментальной физики. Кандидатский экзамен"]
["Профиль обучения: 01.04.02 Теоретическая физика",null,null,null,null,null,null,null,"Теоретическая физика. Кандидатский экзамен"]
["Профиль обучения: 01.04.08 Физика плазмы",null,null,null,null,null,null,null,"Физика плазмы. Кандидатский экзамен"]
["Профиль обучения: 01.04.16 Физика атомного ядра и элементарных частиц",null,null,null,null,null,null,null,"Физика атомного ядра и элементарных частиц. Кандидатский экзамен"]
["Профиль обучения: 01.04.20 Физика пучков заряженных частиц и ускорительная техника",null,null,null,null,null,null,null,"Физика пучков заряженных частиц и ускорительная техника. Кандидатский экзамен"]
[]
[]
[1]
[2]
[3]
[]
[]
[]
[]
[]
[]
[]
[]
[]
[]
[null,{"$f":"(MATCH(Лист1!A6,A1:A6))","v":1},{"$f":"INDEX(I1:I6,(MATCH(Лист1!A6,A1:A6)),1)","v":"!!!!!!Введите профиль обучения (строка 6)"}]
[null,{"$f":"OR(B22=3,B22=5,B22=1,B22=2)","v":true}]
[]
[]
[]
[]
["Базовые",null,null,{"$f":"SUBTOTAL(109,Лист1!D13:D17)","v":4},{"$f":"SUBTOTAL(109,Лист1!E13:E17)","v":5},{"$f":"SUBTOTAL(109,Лист1!F13:F17)","v":0},{"$f":"SUBTOTAL(109,Лист1!G13:G17)","v":0},{"$f":"SUBTOTAL(109,Лист1!H13:H17)","v":0},{"$f":"SUBTOTAL(109,Лист1!I13:I17)","v":0},{"$f":"SUBTOTAL(109,Лист1!J13:J17)","v":0},{"$f":"SUBTOTAL(109,Лист1!K13:K17)","v":0}]
["Вариативные",null,null,{"$f":"SUBTOTAL(109,Лист1!D20:D37)","v":3},{"$f":"SUBTOTAL(109,Лист1!E20:E37)","v":6},{"$f":"SUBTOTAL(109,Лист1!F20:F37)","v":1},{"$f":"SUBTOTAL(109,Лист1!G20:G37)","v":8},{"$f":"SUBTOTAL(109,Лист1!H20:H37)","v":1},{"$f":"SUBTOTAL(109,Лист1!I20:I37)","v":8},{"$f":"SUBTOTAL(109,Лист1!J20:J37)","v":0},{"$f":"SUBTOTAL(109,Лист1!K20:K37)","v":0}]
["Практики",null,null,{"$f":"SUBTOTAL(109,Лист1!D41:D42)","v":0},{"$f":"SUBTOTAL(109,Лист1!E41:E42)","v":0},{"$f":"SUBTOTAL(109,Лист1!F41:F42)","v":3},{"$f":"SUBTOTAL(109,Лист1!G41:G42)","v":0},{"$f":"SUBTOTAL(109,Лист1!H41:H42)","v":0},{"$f":"SUBTOTAL(109,Лист1!I41:I42)","v":0},{"$f":"SUBTOTAL(109,Лист1!J41:J42)","v":0},{"$f":"SUBTOTAL(109,Лист1!K41:K42)","v":0}]
["Научные исследования",null,null,{"$f":"SUM(Лист1!D45:D46)","v":23},{"$f":"SUM(Лист1!E45:E46)","v":19},{"$f":"SUM(Лист1!F45:F46)","v":26},{"$f":"SUM(Лист1!G45:G46)","v":22},{"$f":"SUM(Лист1!H45:H46)","v":29},{"$f":"SUM(Лист1!I45:I46)","v":22},{"$f":"SUM(Лист1!J45:J46)","v":30},{"$f":"SUM(Лист1!K45:K46)","v":21}]
["Аттестация",null,null,{"$f":"SUM(Лист1!D49:D50)","v":0},{"$f":"SUM(Лист1!E49:E50)","v":0},{"$f":"SUM(Лист1!F49:F50)","v":0},{"$f":"SUM(Лист1!G49:G50)","v":0},{"$f":"SUM(Лист1!H49:H50)","v":0},{"$f":"SUM(Лист1!I49:I50)","v":0},{"$f":"SUM(Лист1!J49:J50)","v":0},{"$f":"SUM(Лист1!K49:K50)","v":9}]
[null,null,null,{"$f":"SUM(D28:D32)","v":30},{"$f":"SUM(E28:E32)","v":30},30,30,30,30,30,30]